bitfinex/quotes_ETHUSD_20241004
["timestamp","ask_amount","ask_price","bid_price","bid_amount"]
[1728056360011,4.94962,2391.8,2391.3,4.1817]
[1728056360366,4.18145,2391.6,2391.1,4.18203]
[1728056360567,4.18166,2391.4,2391.0,0.8149]
[1728056360772,4.18166,2391.4,2390.9,4.18237]
[1728056361114,4.18166,2391.4,2390.9,8.36481]
[1728056361275,5.01782,2391.5,2391.1,4.18217]
[1728056361470,5.67359179,2391.5,2391.1,4.18217]
[1728056362623,9.85520179,2391.5,2391.0,4.18232]
[1728056362813,5.67359179,2391.5,2391.1,4.18214]
[1728056364425,1.49203179,2391.5,2391.1,4.18214]
[1728056364718,5.67351179,2391.5,2391.1,4.18214]
[1728056365023,0.65577179,2391.5,2391.1,4.18214]
[1728056365230,0.65577179,2391.5,2391.2,4.18199]
[1728056365379,0.65577179,2391.5,2391.3,4.18181]
[1728056365732,7.18089,2391.9,2391.5,4.18142]
[1728056365896,0.793379,2391.9,2391.6,4.18122]
[1728056366082,5.58906747,2392.1,2391.7,4.18104]
[1728056366423,0.65570747,2392.1,2391.8,4.18094]
[1728056366729,0.65570747,2392.1,2391.6,4.18118]
[1728056366879,0.65570747,2392.1,2391.7,4.18104]
[1728056367077,5.39745422,2392.1,2391.6,4.18129]
[1728056367274,4.18071,2392.0,2391.6,4.18129]
[1728056367489,1.21691422,2392.1,2391.6,4.18123]
[1728056367720,4.1806,2392.0,2391.6,4.18127]
[1728056367936,5.13839642,2392.0,2391.6,4.18127]
[1728056368715,5.13839642,2392.0,2391.4,4.18152]
[1728056369057,5.13839642,2392.0,2391.5,4.18138]
[1728056369316,5.39736422,2392.1,2391.3,4.97472]
[1728056369478,4.83615747,2392.1,2391.6,4.18113]
[1728056369680,0.7761,2392.0,2390.8,0.7975]
[1728056369873,0.7761,2392.0,2391.1,4.18209]
[1728056369874,4.18147,2391.5,2391.1,4.18209]
[1728056370115,4.1814,2391.6,2391.1,4.18209]
[1728056370317,0.51569037,2391.5,2391.1,8.36414]
[1728056370519,0.51569037,2391.5,2391.3,4.1818]
[1728056370726,0.06152948,2391.4,2391.2,4.18197]
[1728056370933,0.06152948,2391.4,2391.3,4.98882]
[1728056371143,0.7761,2392.0,2391.3,4.98882]
[1728056371419,4.17896,2393.0,2391.3,4.98866]
[1728056371420,4.18102,2391.8,2391.3,4.98866]
[1728056371821,0.06194768,2391.7,2391.3,0.807]
[1728056372026,4.24322768,2391.7,2391.2,4.18197]
[1728056372224,0.7718,2391.8,2391.2,4.18197]
[1728056372225,4.95283,2391.8,2391.3,4.1817]
[1728056372434,0.06182428,2391.6,2391.3,4.1817]
[1728056372592,4.24303972,2391.7,2391.2,8.36389]
[1728056372805,4.24303972,2391.7,2391.3,4.18179]
[1728056373007,0.06189972,2391.7,2391.3,4.18179]
[1728056373210,4.95283,2391.8,2391.3,4.18179]
[1728056373423,0.5573333,2391.7,2391.3,4.18179]
[1728056373629,0.0620503,2391.7,2391.4,4.18161]
[1728056374009,4.95278,2391.8,2391.4,4.18155]
[1728056374199,0.06189972,2391.7,2391.4,4.18155]
[1728056374402,0.7718,2391.8,2391.5,4.18133]
[1728056374703,0.0620503,2391.7,2391.5,4.18133]
[1728056375006,0.7718,2391.8,2391.5,4.18133]
[1728056375208,0.06133997,2391.7,2391.3,4.18179]
[1728056375402,1.33263001,2391.8,2391.5,4.18147]
[1728056375602,0.06133997,2391.7,2391.6,4.18126]
[1728056375951,0.65569007,2392.0,2391.7,4.18108]
[1728056376300,0.65569007,2392.0,2391.6,4.18126]
[1728056376602,4.83636007,2392.0,2391.6,4.18121]
[1728056376800,4.83636007,2392.0,2391.6,8.36242]
[1728056377020,4.83636007,2392.0,2391.6,4.18121]
[1728056377433,4.74297601,2391.9,2391.5,4.18141]
[1728056377742,0.56213601,2391.9,2391.6,4.18125]
[1728056378407,0.56213601,2391.9,2391.6,4.18122]
[1728056378745,4.74291601,2391.9,2391.5,4.18136]
[1728056378928,4.74291601,2391.9,2391.3,4.99228]
[1728056378929,0.95792761,2391.8,2391.3,4.18168]
[1728056379244,4.18114,2391.7,2391.3,4.18168]
[1728056379612,5.13895761,2391.8,2391.4,4.18164]
[1728056380012,0.95792761,2391.8,2391.5,4.18145]
[1728056380347,0.56213601,2391.9,2391.5,8.36284]
[1728056380551,0.56213601,2391.9,2391.2,4.18187]
[1728056380853,4.18095,2391.8,2391.4,4.18152]
[1728056381221,4.18095,2391.8,2391.4,8.36308]
[1728056381949,0.56213601,2391.9,2391.5,4.18137]
[1728056382110,4.74295601,2391.9,2391.5,4.18137]
[1728056382524,4.74295601,2391.9,2391.3,4.18165]
[1728056382725,4.18095,2391.8,2391.4,4.18151]
[1728056383146,4.74292601,2391.9,2391.5,4.18145]
[1728056383525,0.56213601,2391.9,2391.5,4.18145]
[1728056383852,9.01706007,2392.0,2391.6,4.1813]
[1728056384156,0.65569007,2392.0,2391.7,4.18112]
[1728056384965,0.65569007,2392.0,2391.8,8.36178]
[1728056385115,0.65569007,2392.0,2391.1,4.18203]
[1728056385116,0.7724,2392.3,2392.0,4.18054]
[1728056385312,1.267645,2392.3,2392.0,4.18054]
[1728056385563,1.267645,2392.3,2391.8,4.99211]
[1728056385564,0.05985339,2392.2,2391.9,4.18076]
[1728056385757,5.447755,2392.3,2391.9,4.18076]
[1728056385971,0.05973003,2392.1,2391.8,4.18081]
[1728056386259,4.18026,2392.2,2391.8,4.18093]
[1728056386468,5.53684441,2392.2,2391.8,4.18093]
[1728056386614,0.05977726,2392.1,2391.8,4.18093]
[1728056386812,0.05977726,2392.1,2391.9,4.18077]
[1728056387326,0.05977726,2392.1,2391.8,4.18086]
[1728056388056,0.05977726,2392.1,2391.6,4.99245]
[1728056388057,4.24028726,2392.1,2391.6,4.99252]
[1728056388269,5.34477193,2392.1,2391.7,4.18109]
[1728056388561,9.52528193,2392.1,2391.7,4.18109]
[1728056389061,4.18065,2392.0,2391.6,4.99252]
[1728056389263,5.5269751,2392.0,2391.6,4.99252]
[1728056389553,0.0590647,2391.9,2391.6,9.1737]
[1728056390375,0.0590647,2391.9,2391.7,4.18109]
[1728056390530,0.0590647,2391.9,2391.8,4.18095]
[1728056390732,4.18027,2392.2,2391.8,4.18095]
[1728056390927,0.0593203,2392.1,2391.8,4.18095]
[1728056391330,0.0593203,2392.1,2391.9,4.1807]
[1728056391532,1.47628948,2392.5,2392.0,4.1806]
[1728056391533,5.65603948,2392.5,2392.0,4.1806]
[1728056391731,0.05930672,2392.4,2392.1,4.18038]
[1728056392267,0.05930672,2392.4,2392.3,4.18007]
[1728056392776,0.05979082,2392.4,2392.3,4.18007]
[1728056392981,4.17939,2392.7,2392.3,4.18007]
[1728056393133,0.06008539,2392.6,2392.3,4.18007]
[1728056393338,5.00009,2392.5,2392.0,4.18049]
[1728056393539,0.05987566,2392.4,2392.1,4.1803]
[1728056393842,0.05987566,2392.4,2392.2,4.18017]
[1728056394034,0.05987566,2392.4,2392.2,4.18016]
[1728056394645,1.80377675,2392.7,2392.2,4.18016]
[1728056394872,1.80377675,2392.7,2392.2,4.18007]
[1728056394873,0.0597044,2392.3,2392.2,4.18007]
[1728056395034,4.17966,2392.6,2392.1,0.821]
[1728056395230,0.0597044,2392.3,2392.1,5.00138]
[1728056395439,4.17973,2392.5,2392.1,5.00138]
[1728056395440,5.23725433,2392.6,2392.2,4.18024]
[1728056395974,5.23725433,2392.6,2392.1,5.00138]
[1728056395975,4.17976,2392.5,2392.1,5.00135]
[1728056396271,4.17976,2392.5,2392.1,0.821]
[1728056396473,4.17976,2392.5,2392.1,5.00139]
[1728056396675,5.20348543,2392.5,2392.1,5.00139]
[1728056397044,4.17976,2392.5,2392.1,5.00139]
[1728056397237,4.17999,2392.4,2392.1,0.821]
[1728056397442,4.1805,2392.1,2391.6,4.96415]
[1728056397663,4.1805,2392.1,2391.7,4.18105]
[1728056397984,4.18027,2392.2,2391.8,4.18092]
[1728056398145,0.836048,2392.2,2391.8,4.18092]
[1728056398344,4.18015,2392.3,2391.9,4.18077]
[1728056398873,8.36033,2392.3,2391.9,4.18061]
[1728056399131,4.18015,2392.3,2391.9,4.18061]
[1728056399443,4.17992,2392.4,2391.9,4.18061]
[1728056399642,4.17992,2392.4,2392.0,4.18053]
[1728056399845,5.092923,2392.3,2391.8,4.18093]
[1728056400152,5.092893,2392.3,2391.9,4.18074]
[1728056400362,4.18025,2392.2,2391.6,4.96416]
[1728056400653,4.24017994,2392.2,2391.8,4.18092]
[1728056401240,4.24024994,2392.2,2391.8,4.18093]
[1728056401479,5.17357323,2392.2,2391.8,4.18093]
[1728056402045,4.18042,2392.1,2391.8,4.18093]
[1728056402350,0.05973415,2392.0,2391.9,4.18076]
[1728056402741,9.37096683,2392.7,2392.3,4.17994]
[1728056402941,4.17963,2392.6,2392.2,4.18023]
[1728056403177,4.17982,2392.5,2392.0,4.18046]
[1728056403499,4.17974,2392.5,2392.1,4.18028]
[1728056403937,0.7583,2392.6,2392.1,4.18028]
[1728056404155,1.01291868,2392.5,2392.1,4.1803]
[1728056404364,5.19265868,2392.5,2392.1,4.1803]
[1728056404566,1.01291868,2392.5,2392.1,4.1803]
[1728056404874,1.01291868,2392.5,2392.2,4.18018]
[1728056406041,5.19279868,2392.5,2391.9,4.1807]
[1728056406389,1.01305487,2392.4,2392.1,4.18041]
[1728056406748,0.7583,2392.6,2392.2,4.18021]
[1728056406898,0.7583,2392.6,2392.3,4.18004]
[1728056407195,4.93786,2392.6,2392.2,4.18017]
[1728056407412,4.93786,2392.6,2392.2,8.36033]
[1728056408496,4.93786,2392.6,2392.2,8.36034]
[1728056408675,4.17976,2392.5,2392.1,4.94819]
[1728056408856,6.52805408,2392.6,2392.1,4.94819]
[1728056409058,4.93786,2392.6,2392.2,4.18012]
[1728056409574,4.93786,2392.6,2392.1,4.94814]
[1728056409985,4.93786,2392.6,2392.2,4.18023]
[1728056410294,10.3085933,2392.8,2392.4,4.1799]
[1728056410295,7.18516424,2392.8,2392.4,4.1799]
[1728056410505,6.37041424,2393.0,2392.6,4.17954]
[1728056410663,4.179,2393.0,2392.6,4.17954]
[1728056411164,0.8144,2393.1,2392.6,4.17954]
[1728056411165,4.99308,2393.1,2392.6,4.17954]
[1728056411508,4.99308,2393.1,2392.5,0.8315]
[1728056411509,0.8144,2393.1,2392.5,5.01105]
[1728056411711,4.9931,2393.1,2392.7,4.17937]
[1728056412010,9.17192,2393.1,2392.7,4.17937]
[1728056412164,4.1787,2393.1,2392.7,4.1793]
[1728056412366,4.17948,2392.7,2392.2,4.18015]
[1728056412570,4.17966,2392.6,2392.2,4.18015]
[1728056412887,0.7551,2392.7,2392.4,4.17985]
[1728056413665,0.7551,2392.7,2392.3,4.17999]
[1728056413898,4.93449,2392.7,2392.3,8.35993]
[1728056414321,0.7551,2392.7,2392.4,4.17987]
[1728056415029,4.17912,2392.9,2392.5,4.17964]
[1728056415492,5.64262564,2393.1,2392.4,0.7704]
[1728056415493,0.8085,2393.1,2392.4,0.7704]
[1728056415674,0.05325152,2392.8,2392.7,4.17924]
[1728056415879,0.8085,2393.1,2392.8,4.17919]
[1728056416323,7.02325641,2393.4,2392.4,4.95028]
[1728056416324,4.94316,2393.3,2392.9,4.17891]
[1728056416593,0.65533889,2393.4,2393.0,4.17872]
[1728056416794,4.9427,2393.6,2393.2,4.17848]
[1728056417190,4.17801,2393.5,2393.1,4.17856]
[1728056417523,0.7648,2393.6,2393.2,4.17843]
[1728056417680,4.17814,2393.5,2392.8,4.9319]
[1728056417883,0.7937,2393.4,2392.6,0.8139]
[1728056418126,0.7937,2393.4,2392.6,4.99332]
[1728056418127,4.17884,2393.1,2392.6,4.99332]
[1728056418425,4.17892,2393.0,2392.6,0.8139]
[1728056418932,4.17869,2393.1,2392.6,0.8139]
[1728056419082,4.65161291,2393.3,2392.6,0.8139]
[1728056419083,0.47315291,2393.3,2392.6,0.8139]
[1728056419432,0.47315291,2393.3,2392.9,4.17892]
[1728056419630,0.47315291,2393.3,2392.8,8.3582]
[1728056419631,4.65160291,2393.3,2392.8,8.3582]
[1728056419781,0.84453029,2393.2,2392.8,4.17909]
[1728056419982,0.84453029,2393.2,2392.9,4.17895]
[1728056420217,0.84453029,2393.2,2392.8,4.17909]
[1728056420431,0.47315291,2393.3,2393.0,4.1787]
[1728056420584,4.65160291,2393.3,2392.9,4.17899]
[1728056420977,0.47315291,2393.3,2393.0,4.17877]
[1728056421332,0.47315291,2393.3,2392.9,4.17891]
[1728056421993,0.47315291,2393.3,2393.0,4.17884]
[1728056422200,0.47315291,2393.3,2393.1,4.17867]
[1728056422433,7.17801,2393.5,2393.0,4.95964]
[1728056422599,4.17817,2393.4,2393.0,4.95964]
[1728056422804,4.178,2393.5,2393.1,4.17867]
[1728056423421,0.7884,2393.6,2393.2,4.17849]
[1728056423422,4.96628,2393.6,2393.2,4.17849]
[1728056423733,0.7884,2393.6,2393.2,4.17846]
[1728056423883,0.7884,2393.6,2393.2,8.35687]
[1728056424079,0.7884,2393.6,2393.2,4.17841]
[1728056424612,4.96621,2393.6,2393.2,4.17841]
[1728056424986,4.96621,2393.6,2393.2,8.3568]
[1728056425304,0.7884,2393.6,2393.2,8.35679]
[1728056425495,5.62163827,2393.8,2393.2,4.17843]
[1728056425700,4.17767,2393.7,2393.3,4.17825]
[1728056426996,4.17767,2393.7,2392.9,4.17897]
[1728056426997,0.751,2393.6,2392.9,4.17892]
[1728056427196,4.17833,2393.3,2392.9,4.17892]
[1728056428835,4.97461,2393.2,2392.8,4.17916]
[1728056429009,6.28368691,2393.2,2392.8,4.17916]
[1728056429369,2.10517691,2393.2,2392.9,4.17895]
[1728056429661,4.97461,2393.2,2392.8,4.17917]
[1728056429854,0.7961,2393.2,2392.9,4.17902]
[1728056430661,0.05334188,2393.1,2392.9,4.17902]
[1728056431016,0.05334188,2393.1,2392.9,8.35796]
[1728056431219,0.05334188,2393.1,2392.9,4.17894]
[1728056431657,0.05334188,2393.1,2393.0,4.17885]
[1728056431867,0.09646329,2393.1,2393.0,4.17885]
[1728056432523,4.98429,2393.4,2393.0,4.17885]
[1728056432720,0.09640137,2393.1,2393.0,4.17885]
[1728056432928,0.916236,2393.3,2393.0,4.17885]
[1728056433181,0.09640137,2393.1,2393.0,4.17885]
[1728056433320,0.916236,2393.3,2392.9,4.17902]
[1728056433529,0.09640137,2393.1,2393.0,4.17877]
[1728056433722,0.09640137,2393.1,2392.8,4.17917]
[1728056434065,0.09627996,2393.0,2392.9,4.17902]
[1728056434385,4.17852,2393.2,2392.8,4.17917]
[1728056434525,0.09627996,2393.0,2392.8,4.17917]
[1728056434725,4.17852,2393.2,2392.8,4.17917]
[1728056435023,5.094815,2393.2,2392.8,4.17917]
[1728056435241,0.09640137,2393.1,2392.8,4.17917]
[1728056435870,4.17859,2393.2,2392.7,4.1793]
[1728056436158,4.17859,2393.2,2391.7,16.52107]
[1728056436159,4.17956,2392.6,2392.2,5.0041]
[1728056436459,0.09512686,2392.5,2392.2,9.18419]
[1728056436623,0.09512686,2392.5,2392.1,4.18034]
[1728056436965,0.09512686,2392.5,2392.2,4.18015]
[1728056437131,0.09512686,2392.5,2392.1,4.18034]
[1728056437132,4.27486686,2392.5,2392.1,4.18034]
[1728056437320,0.09512686,2392.5,2392.2,4.18022]
[1728056437716,4.17963,2392.6,2392.2,4.18022]
[1728056437921,0.09444778,2392.4,2392.3,4.18007]
[1728056438192,5.0103,2392.7,2392.3,4.18007]
[1728056438638,5.0103,2392.7,2392.1,4.18028]
[1728056438639,4.27436384,2392.6,2392.1,4.18028]
[1728056438835,0.09473384,2392.6,2392.2,4.18024]
[1728056439034,4.27431384,2392.6,2392.2,4.18025]
[1728056439366,4.27431384,2392.6,2392.1,4.18028]
[1728056439545,8.45401384,2392.6,2392.1,8.36063]
[1728056439743,4.27431384,2392.6,2392.2,4.18022]
[1728056439953,4.17997,2392.4,2392.0,4.18056]
[1728056440159,4.27440384,2392.6,2392.2,4.18023]
[1728056440336,0.09459094,2392.3,2392.2,4.18023]
[1728056440570,8.35932,2392.6,2392.2,4.18023]
[1728056440773,9.67212491,2392.6,2392.2,4.18023]
[1728056441082,0.09469772,2392.5,2392.2,4.18023]
[1728056441287,4.27443772,2392.5,2392.1,4.18034]
[1728056442002,0.09469772,2392.5,2392.2,4.18024]
[1728056443012,4.95047,2392.4,2391.9,4.18066]
[1728056443304,4.95047,2392.4,2392.0,4.18056]
[1728056443305,0.09417929,2392.3,2392.0,4.18056]
[1728056443858,4.27431929,2392.3,2391.8,4.9758]
[1728056444080,4.18032,2392.2,2391.8,4.1808]
[1728056444263,0.09473868,2392.1,2391.8,4.1808]
[1728056444761,0.09473868,2392.1,2391.7,4.18096]
[1728056444962,0.09473868,2392.1,2391.7,8.36198]
[1728056445395,0.09473868,2392.1,2391.8,4.18092]
[1728056445696,0.09473868,2392.1,2391.8,4.18091]
[1728056445898,0.09473868,2392.1,2391.8,8.36177]
[1728056446205,0.09473868,2392.1,2391.8,8.36171]
[1728056446513,0.09480645,2392.0,2391.9,4.18072]
[1728056446662,0.09480645,2392.0,2391.9,4.96652]
[1728056446863,0.7705,2392.4,2391.9,4.96652]
[1728056446864,4.9504,2392.4,2391.9,4.96652]
[1728056447064,0.09535987,2392.3,2392.0,4.18056]
[1728056448158,0.09535987,2392.3,2391.7,4.18097]
[1728056448159,4.18026,2392.2,2391.7,4.18097]
[1728056448579,0.09512634,2392.1,2391.7,4.18097]
[1728056449288,0.09512634,2392.1,2391.8,4.18086]
[1728056450996,0.09512634,2392.1,2391.4,4.95834]
[1728056450997,4.27557634,2392.1,2391.7,4.18109]
[1728056451198,5.21099586,2392.1,2391.7,4.18109]
[1728056451408,1.03054586,2392.1,2391.7,4.18109]
[1728056451777,0.09512634,2392.1,2391.8,4.18091]
[1728056454121,0.09512634,2392.1,2391.8,4.18087]
[1728056454287,0.09512634,2392.1,2391.9,4.18074]
[1728056454488,0.7705,2392.4,2392.1,4.18035]
[1728056454715,0.0948834,2392.3,2392.0,4.18056]
[1728056454923,0.0948834,2392.3,2392.0,4.18049]
[1728056455445,0.0948834,2392.3,2392.0,4.18048]
[1728056455718,0.0948834,2392.3,2392.1,4.18038]
[1728056456490,0.0948834,2392.3,2392.0,4.18058]
[1728056456685,0.0948834,2392.3,2392.1,4.18029]
[1728056456994,0.0948834,2392.3,2392.2,4.18025]
[1728056457524,4.96861,2392.7,2392.3,4.18001]
[1728056458235,9.14808,2392.7,2392.3,4.18001]
[1728056458389,4.96857,2392.7,2392.3,4.18001]
[1728056459603,0.7891,2392.7,2392.4,4.17987]
[1728056459798,7.95342,2392.9,2392.4,4.17987]
[1728056460099,4.17949,2392.7,2392.2,4.18016]
[1728056460624,0.0918591,2392.6,2392.2,4.18016]
[1728056460841,0.0918591,2392.6,2392.3,4.18004]
[1728056461126,0.0918591,2392.6,2392.1,4.18041]
[1728056461127,4.95233,2392.5,2392.1,4.18041]
[1728056461330,0.7726,2392.5,2392.1,4.18041]
[1728056461535,0.09162794,2392.4,2392.2,4.18024]
[1728056462339,0.09162794,2392.4,2392.3,4.18007]
[1728056462635,4.17889,2393.0,2392.6,4.17955]
[1728056463003,0.09185829,2392.9,2392.6,4.17955]
[1728056463217,0.09185829,2392.9,2392.7,4.1793]
[1728056463554,4.93883,2393.1,2392.7,4.1793]
[1728056463555,0.76,2393.1,2392.7,4.17925]
[1728056463705,0.0918136,2392.8,2392.7,4.17925]
[1728056463908,4.17839,2393.3,2392.9,4.17894]
[1728056464509,4.95724,2393.4,2392.9,4.1789]
[1728056464703,0.90088012,2393.4,2392.6,0.8022]
[1728056464943,4.17872,2393.1,2392.7,4.17926]
[1728056465143,4.17872,2393.1,2392.6,0.8022]
[1728056465144,4.17886,2393.0,2392.6,4.98158]
[1728056465509,4.17875,2393.1,2392.7,4.17934]
[1728056465949,0.779,2393.4,2393.0,4.17885]
[1728056466104,0.779,2393.4,2393.1,4.1786]
[1728056466307,4.17802,2393.5,2393.1,4.1786]
[1728056466552,4.98787,2393.6,2393.2,4.1785]
[1728056466852,4.17816,2393.4,2393.0,0.816]
[1728056467062,2.13065526,2393.6,2392.7,4.97046]
[1728056467063,4.93335,2393.2,2392.7,4.97046]
[1728056467365,4.17868,2393.1,2392.7,4.97046]
[1728056468263,4.93335,2393.2,2392.7,4.9704]
[1728056468472,4.17886,2393.0,2392.7,0.7911]
[1728056468843,4.17908,2392.9,2392.5,0.7625]
[1728056469041,4.17889,2393.0,2392.6,4.17953]
[1728056469438,0.7547,2393.2,2392.7,4.17921]
[1728056469439,4.9333,2393.2,2392.7,4.17921]
[1728056469626,4.17829,2393.4,2392.9,4.17902]
[1728056469627,4.17836,2393.3,2392.9,4.17902]
[1728056469827,5.094735,2393.3,2392.9,4.17902]
[1728056470271,4.17863,2393.2,2392.5,4.94207]
[1728056470477,4.17836,2393.3,2392.9,4.17893]
[1728056470896,4.17836,2393.3,2392.7,4.17937]
[1728056470897,9.16328,2393.5,2393.0,4.96647]
[1728056471034,4.17783,2393.6,2393.2,4.1785]
[1728056471235,0.65521827,2393.8,2393.4,4.17803]
[1728056471435,4.93068,2393.9,2393.4,4.96573]
[1728056471668,4.93068,2393.9,2393.5,4.17797]
[1728056471872,6.06015476,2393.9,2393.5,4.17797]
[1728056472040,4.17748,2393.8,2393.4,4.96573]
[1728056472240,1.88277476,2393.9,2393.5,4.17797]
[1728056472241,6.06008476,2393.9,2393.5,4.17797]
[1728056472431,6.06008476,2393.9,2393.4,4.96573]
[1728056472633,4.17763,2393.7,2393.4,0.7877]
[1728056473271,4.17784,2393.6,2393.0,4.17871]
[1728056473480,4.17788,2393.6,2393.1,4.17857]
[1728056473836,8.35582,2393.6,2393.1,4.17857]
[1728056474525,4.17808,2393.5,2393.1,4.17857]
[1728056475281,8.35577,2393.6,2393.1,4.17857]
[1728056475496,4.17788,2393.6,2393.1,4.17857]
[1728056475804,0.93795415,2393.6,2392.0,0.85899616]
[1728056475938,0.93795415,2393.6,2390.4,0.85880714]
[1728056475939,4.1827,2390.8,2390.4,0.85880714]
[1728056476135,2.0,2391.2,2389.9,3.00648658]
[1728056476136,4.18357,2390.3,2389.9,3.00648658]
[1728056476391,0.06952037,2390.7,2389.8,0.7535]
[1728056476683,0.07111118,2390.2,2390.0,4.56499743]
[1728056476983,7.18255,2390.9,2390.1,1.21382143]
[1728056477167,6.02709867,2391.3,2390.1,1.21382143]
[1728056477168,4.18285,2390.8,2390.1,1.21382143]
[1728056477376,4.18345,2390.4,2390.2,0.26457157]
[1728056477536,4.18357,2390.3,2390.2,0.26457157]
[1728056477742,4.2512808,2390.3,2390.2,0.26457157]
[1728056478279,4.2512808,2390.3,2390.1,0.39572143]
[1728056478467,0.0677108,2390.3,2390.1,0.39572143]
[1728056478672,0.0677108,2390.3,2389.7,0.7825]
[1728056478840,0.0677108,2390.3,2389.8,0.6094882]
[1728056479039,4.18327,2390.5,2389.8,0.6094882]
[1728056479240,4.18356,2390.4,2389.8,0.6094882]
[1728056479476,4.25020658,2390.4,2389.8,0.6094882]
[1728056479681,4.18358,2390.3,2389.8,0.6094882]
[1728056480082,0.06640303,2390.2,2389.8,0.6094882]
[1728056480251,4.18358,2390.3,2389.8,0.6094882]
[1728056480452,4.18305,2390.6,2389.8,0.6094882]
[1728056480682,4.18155,2391.5,2389.8,0.6094882]
[1728056480683,0.06775892,2390.2,2389.8,0.6094882]
[1728056480845,4.18323,2390.5,2389.8,0.6094882]
[1728056481165,0.06812065,2390.4,2389.8,0.6094882]
[1728056481373,4.18373,2390.3,2389.7,0.7825]
[1728056481854,0.06798812,2390.2,2389.7,0.7825]
[1728056482465,4.18325,2390.5,2389.7,0.7825]
[1728056482657,0.06823154,2390.4,2389.8,0.55]
[1728056483047,4.18292,2390.7,2389.8,0.55]
[1728056483248,4.18292,2390.7,2389.8,4.73444]
[1728056483249,8.3659,2390.7,2389.8,4.73444]
[1728056483454,4.18292,2390.7,2389.9,4.18423]
[1728056483676,0.0683088,2390.6,2389.9,4.18423]
[1728056483897,0.0683088,2390.6,2390.0,5.50389]
[1728056484083,4.18259,2390.9,2390.0,5.50389]
[1728056484397,0.06872122,2390.8,2390.0,1.3198]
[1728056484561,0.06872122,2390.8,2390.1,4.18392]
[1728056484970,0.06872122,2390.8,2390.2,9.03572787]
[1728056485291,4.94303,2391.4,2390.1,4.18392]
[1728056485292,4.18165,2391.4,2390.7,0.7578]
[1728056486285,4.18131,2391.6,2390.8,4.73258]
[1728056486843,0.0670385,2391.5,2390.8,4.73258]
[1728056487396,4.18125,2391.7,2390.9,8.36491]
[1728056487553,4.18095,2391.8,2391.0,4.18233]
[1728056487754,0.06723688,2391.6,2391.1,0.8303]
[1728056488069,0.0671153,2391.5,2391.1,0.8303]
[1728056488385,4.18112,2391.7,2391.1,0.8303]
[1728056488386,4.18139,2391.6,2391.1,0.8303]
[1728056488547,0.06699371,2391.4,2391.1,0.8303]
[1728056488749,4.18088,2391.9,2391.1,0.8303]
[1728056488750,0.0671153,2391.5,2391.1,0.8303]
[1728056488978,4.181,2391.8,2391.1,0.8303]
[1728056488979,0.06687212,2391.3,2391.1,0.8303]
[1728056489190,4.18088,2391.9,2391.1,5.01237]
[1728056489346,4.18088,2391.9,2391.2,4.18198]
[1728056489550,0.06749774,2391.8,2391.2,4.1819]
[1728056490292,4.1808,2391.9,2391.2,4.1819]
[1728056490499,0.06672074,2391.8,2391.3,4.18172]
[1728056490668,4.18043,2392.1,2391.3,4.18172]
[1728056491057,0.06629781,2392.0,2391.4,4.18161]
[1728056491453,0.06629781,2392.0,2391.3,4.18172]
[1728056491759,4.24689781,2392.0,2391.3,4.18172]
[1728056492372,0.06629781,2392.0,2391.4,4.18164]
[1728056492798,4.18048,2392.1,2391.4,4.18156]
[1728056493089,0.06616594,2391.9,2391.4,4.18156]
[1728056493404,0.06604439,2391.8,2391.5,0.8139]
[1728056493559,0.06604439,2391.8,2391.6,4.18117]
[1728056493760,9.12416,2392.6,2391.8,4.18093]
[1728056494105,9.12416,2392.6,2391.6,4.18117]
[1728056494106,4.17992,2392.4,2391.7,4.18111]
[1728056494404,0.06632123,2392.3,2391.7,4.18111]
[1728056494553,0.06632123,2392.3,2391.6,4.18117]
[1728056494755,0.06632123,2392.3,2391.7,4.18102]
[1728056494958,4.17973,2392.5,2391.8,4.18094]
[1728056495158,0.06643601,2392.2,2391.8,4.18094]
[1728056495461,0.06631448,2392.1,2391.7,4.1811]
[1728056495659,4.17991,2392.4,2391.7,4.1811]
[1728056495862,0.90252152,2392.3,2391.6,4.18117]
[1728056496094,0.90252152,2392.3,2391.8,4.18094]
[1728056496916,0.06655752,2392.3,2391.9,4.18074]
[1728056497144,4.1799,2392.4,2391.8,4.18094]
[1728056497355,0.06679655,2392.2,2392.0,4.18045]
[1728056497502,0.06691553,2392.3,2392.2,0.55]
[1728056497700,4.17859,2393.2,2392.2,0.55]
[1728056497900,0.06331866,2393.1,2392.5,4.17964]
[1728056498342,0.06331866,2393.1,2392.5,8.35928]
[1728056498515,5.16357453,2393.1,2392.5,4.17964]
[1728056498914,0.06331866,2393.1,2392.5,4.17964]
[1728056499114,0.06331866,2393.1,2392.2,4.7302]
[1728056499115,1.80737148,2393.7,2392.6,5.40198787]
[1728056499404,4.1773,2393.9,2393.2,4.17849]
[1728056499917,0.0613731,2393.8,2393.2,4.17849]
[1728056500346,4.17781,2393.6,2392.8,4.17909]
[1728056500546,4.17781,2393.6,2392.9,4.17901]
[1728056500721,0.0613445,2393.5,2393.0,4.17884]
[1728056500927,0.0613445,2393.5,2392.9,4.179]
[1728056501721,0.0613445,2393.5,2393.0,4.17885]
[1728056503462,0.0613445,2393.5,2393.0,4.17876]
[1728056504650,0.0613445,2393.5,2393.1,0.8314]
[1728056504863,0.0613445,2393.5,2393.4,4.17815]
[1728056505159,4.17678,2394.2,2393.5,4.1779]
[1728056505466,0.7844,2394.3,2393.6,4.20079552]
[1728056505665,4.25331253,2394.6,2394.0,4.1771]
[1728056505666,0.05973258,2394.1,2394.0,4.1771]
[1728056505961,0.07716253,2394.6,2394.2,0.55]
[1728056506127,0.07716253,2394.6,2394.4,4.17632]
[1728056506328,0.05406229,2394.5,2394.4,4.17632]
[1728056506522,0.05406229,2394.5,2394.3,0.8126]
[1728056506735,0.07716253,2394.6,2394.3,0.8126]
[1728056506934,4.25324253,2394.6,2394.0,0.79]